[Event "Titled Tuesday Blitz August 15 Early 2023"]
[White "Seifert, Henryk"]
[Black "Gurevich, Dmitry"]
[WhiteFideId "1100963"]
[BlackFideId "2000407"]
[WhiteElo "2122"]
[BlackElo "2458"]
[Result "0-1"]
[Round "10"]
[TimeControl "180+1"]
[Date "2023.08.15"]
[WhiteClock "0:00:00"]
[BlackClock "0:00:09"]
[Board "118"]

1. e4 {[%clk 0:03:00]}  c5 {[%clk 0:02:58]} 2. Nf3 {[%clk 0:02:59]}  d6 {[%clk 0:02:59]} 3. d4 {[%clk 0:02:56]}  cxd4 {[%clk 0:02:58]} 4. Qxd4 {[%clk 0:02:57]}  a6 {[%clk 0:02:55]} 5. Bc4 {[%clk 0:02:54]}  e6 {[%clk 0:02:55]} 6. Nc3 {[%clk 0:02:52]}  Nf6 {[%clk 0:02:54]} 7. O-O {[%clk 0:02:48]}  Be7 {[%clk 0:02:54]} 8. Bg5 {[%clk 0:02:42]}  Qc7 {[%clk 0:02:48]} 9. Bb3 {[%clk 0:02:38]}  b6 {[%clk 0:02:41]} 10. Rad1 {[%clk 0:02:35]}  Nbd7 {[%clk 0:02:38]} 11. Rfe1 {[%clk 0:02:30]}  Ne5 {[%clk 0:02:34]} 12. Ba4+ {[%clk 0:02:02]}  b5 {[%clk 0:02:18]} 13. Bb3 {[%clk 0:01:50]}  Nxf3+ {[%clk 0:02:15]} 14. gxf3 {[%clk 0:01:51]}  Bb7 {[%clk 0:02:06]} 15. Kh1 {[%clk 0:01:49]}  h6 {[%clk 0:01:57]} 16. Be3 {[%clk 0:01:33]}  O-O {[%clk 0:01:45]} 17. Rg1 {[%clk 0:01:31]}  Kh8 {[%clk 0:01:45]} 18. Rg2 {[%clk 0:00:59]}  Rg8 {[%clk 0:01:30]} 19. Rdg1 {[%clk 0:00:58]}  Qc5 {[%clk 0:01:25]} 20. Qd2 {[%clk 0:00:48]}  Qh5 {[%clk 0:01:25]} 21. Rg3 {[%clk 0:00:33]}  Rac8 {[%clk 0:01:16]} 22. Ne2 {[%clk 0:00:24]}  Nxe4 {[%clk 0:01:03]} 23. fxe4 {[%clk 0:00:20]}  Bxe4+ {[%clk 0:01:02]} 24. R3g2 {[%clk 0:00:17]}  d5 {[%clk 0:00:43]} 25. Ng3 {[%clk 0:00:15]}  Bxg2+ {[%clk 0:00:40]} 26. Rxg2 {[%clk 0:00:16]}  Qh3 {[%clk 0:00:35]} 27. c3 {[%clk 0:00:11]}  Bf6 {[%clk 0:00:24]} 28. Bc2 {[%clk 0:00:11]}  Rc4 {[%clk 0:00:18]} 29. Qd3 {[%clk 0:00:11]}  g6 {[%clk 0:00:18]} 30. Qd2 {[%clk 0:00:08]}  Rh4 {[%clk 0:00:18]} 31. Bd3 {[%clk 0:00:04]}  Be5 {[%clk 0:00:17]} 32. Qe2 {[%clk 0:00:02]}  Bf6 {[%clk 0:00:11]} 33. Qf3 {[%clk 0:00:02]}  Bg7 {[%clk 0:00:10]} 34. Qe2 {[%clk 0:00:00]}  e5 {[%clk 0:00:09]} 0-1


[Site "https://www.chess.com"]

[Event "Titled Tuesday Blitz August 15 Early 2023"]
[White "Kielinkei"]
[Black "Wang, Alexander J"]
[BlackFideId "30955270"]
[WhiteElo "2411"]
[BlackElo "2296"]
[Result "1-0"]
[Round "10"]
[TimeControl "180+1"]
[Date "2023.08.15"]
[WhiteClock "0:00:05"]
[BlackClock "0:00:09"]
[Board "121"]

1. c4 {[%clk 0:03:00]}  Nf6 {[%clk 0:02:57]} 2. Nc3 {[%clk 0:03:00]}  d6 {[%clk 0:02:56]} 3. g3 {[%clk 0:03:00]}  g6 {[%clk 0:02:46]} 4. Bg2 {[%clk 0:03:01]}  Bg7 {[%clk 0:02:44]} 5. f4 {[%clk 0:03:01]}  O-O {[%clk 0:02:40]} 6. Nf3 {[%clk 0:03:02]}  Nc6 {[%clk 0:02:39]} 7. O-O {[%clk 0:03:02]}  e5 {[%clk 0:02:28]} 8. d3 {[%clk 0:03:02]}  Re8 {[%clk 0:02:23]} 9. e3 {[%clk 0:02:59]}  e4 {[%clk 0:02:17]} 10. dxe4 {[%clk 0:02:34]}  Nxe4 {[%clk 0:02:16]} 11. Nxe4 {[%clk 0:02:34]}  Rxe4 {[%clk 0:02:17]} 12. Nd4 {[%clk 0:02:32]}  Rxd4 {[%clk 0:01:59]} 13. exd4 {[%clk 0:02:31]}  Nxd4 {[%clk 0:01:58]} 14. Bd2 {[%clk 0:02:14]}  Bf5 {[%clk 0:01:51]} 15. Rc1 {[%clk 0:02:06]}  c5 {[%clk 0:01:40]} 16. Bc3 {[%clk 0:02:04]}  Qb6 {[%clk 0:01:30]} 17. g4 {[%clk 0:01:49]}  Be6 {[%clk 0:01:21]} 18. b3 {[%clk 0:01:49]}  Re8 {[%clk 0:01:14]} 19. Kh1 {[%clk 0:01:45]}  Bd7 {[%clk 0:01:10]} 20. Bxd4 {[%clk 0:01:39]}  Bxd4 {[%clk 0:01:10]} 21. f5 {[%clk 0:01:30]}  Bc6 {[%clk 0:01:05]} 22. Qc2 {[%clk 0:01:10]}  Bxg2+ {[%clk 0:01:00]} 23. Qxg2 {[%clk 0:01:10]}  Qc7 {[%clk 0:00:54]} 24. fxg6 {[%clk 0:01:09]}  hxg6 {[%clk 0:00:53]} 25. Rce1 {[%clk 0:01:10]}  Rxe1 {[%clk 0:00:49]} 26. Rxe1 {[%clk 0:01:11]}  Kg7 {[%clk 0:00:49]} 27. Qd5 {[%clk 0:01:09]}  Be5 {[%clk 0:00:47]} 28. g5 {[%clk 0:01:06]}  Qe7 {[%clk 0:00:44]} 29. Qg2 {[%clk 0:01:02]}  Qe6 {[%clk 0:00:43]} 30. Qf3 {[%clk 0:01:01]}  Qe7 {[%clk 0:00:42]} 31. Qg4 {[%clk 0:01:00]}  Qc7 {[%clk 0:00:38]} 32. h4 {[%clk 0:01:00]}  Qc6+ {[%clk 0:00:38]} 33. Qg2 {[%clk 0:01:00]}  Qd7 {[%clk 0:00:37]} 34. Qf3 {[%clk 0:00:58]}  b5 {[%clk 0:00:34]} 35. h5 {[%clk 0:00:57]}  gxh5 {[%clk 0:00:32]} 36. Qxh5 {[%clk 0:00:56]}  Qf5 {[%clk 0:00:30]} 37. cxb5 {[%clk 0:00:39]}  Qf2 {[%clk 0:00:22]} 38. Rg1 {[%clk 0:00:35]}  Qf4 {[%clk 0:00:14]} 39. g6 {[%clk 0:00:03]}  Qe4+ {[%clk 0:00:14]} 40. Rg2 {[%clk 0:00:04]}  fxg6 {[%clk 0:00:13]} 41. Qg4 {[%clk 0:00:02]}  Qe1+ {[%clk 0:00:12]} 42. Rg1 {[%clk 0:00:03]}  Qd2 {[%clk 0:00:10]} 43. Qxg6+ {[%clk 0:00:03]}  Kf8 {[%clk 0:00:10]} 44. Rf1+ {[%clk 0:00:03]}  Ke7 {[%clk 0:00:09]} 45. Rf7+ {[%clk 0:00:04]}  Kd8 {[%clk 0:00:09]} 46. Qg8# {[%clk 0:00:05]} 1-0


[Site "https://www.chess.com"]

[Event "Titled Tuesday Blitz August 15 Early 2023"]
[White "Llanos, Guillermo"]
[Black "Goswami, Vedant"]
[WhiteFideId "100358"]
[BlackFideId "5003725"]
[WhiteElo "2409"]
[BlackElo "2321"]
[Result "0-1"]
[Round "10"]
[TimeControl "180+1"]
[Date "2023.08.15"]
[WhiteClock "0:00:12"]
[BlackClock "0:00:17"]
[Board "123"]

1. b3 {[%clk 0:03:00]}  e5 {[%clk 0:02:57]} 2. Bb2 {[%clk 0:03:01]}  d6 {[%clk 0:02:54]} 3. Nf3 {[%clk 0:02:59]}  Nc6 {[%clk 0:02:53]} 4. d4 {[%clk 0:02:59]}  e4 {[%clk 0:02:49]} 5. Nfd2 {[%clk 0:02:59]}  e3 {[%clk 0:02:46]} 6. fxe3 {[%clk 0:02:59]}  Qh4+ {[%clk 0:02:31]} 7. g3 {[%clk 0:02:57]}  Qg5 {[%clk 0:02:32]} 8. e4 {[%clk 0:02:45]}  Nf6 {[%clk 0:02:23]} 9. Bg2 {[%clk 0:02:26]}  h5 {[%clk 0:02:06]} 10. Nf3 {[%clk 0:01:57]}  Qe3 {[%clk 0:02:01]} 11. Bc1 {[%clk 0:01:48]}  Qxe4 {[%clk 0:02:00]} 12. Nc3 {[%clk 0:01:47]}  Qe7 {[%clk 0:01:51]} 13. Bg5 {[%clk 0:01:46]}  Qd8 {[%clk 0:01:44]} 14. d5 {[%clk 0:01:30]}  Nb8 {[%clk 0:01:38]} 15. Qd2 {[%clk 0:01:26]}  Be7 {[%clk 0:01:37]} 16. O-O-O {[%clk 0:01:25]}  Nbd7 {[%clk 0:01:32]} 17. Bh3 {[%clk 0:01:11]}  Nc5 {[%clk 0:01:29]} 18. Bxc8 {[%clk 0:01:11]}  Qxc8 {[%clk 0:01:29]} 19. Nd4 {[%clk 0:01:07]}  Nfe4 {[%clk 0:01:17]} 20. Nxe4 {[%clk 0:00:58]}  Nxe4 {[%clk 0:01:17]} 21. Qd3 {[%clk 0:00:57]}  Bxg5+ {[%clk 0:01:11]} 22. Kb1 {[%clk 0:00:57]}  Nf2 {[%clk 0:01:07]} 23. Qf3 {[%clk 0:00:50]}  Nxd1 {[%clk 0:01:05]} 24. Rxd1 {[%clk 0:00:50]}  Bf6 {[%clk 0:01:01]} 25. Nf5 {[%clk 0:00:49]}  Qd7 {[%clk 0:00:51]} 26. e4 {[%clk 0:00:48]}  O-O-O {[%clk 0:00:50]} 27. Re1 {[%clk 0:00:40]}  Rde8 {[%clk 0:00:50]} 28. a4 {[%clk 0:00:39]}  g6 {[%clk 0:00:43]} 29. Ne3 {[%clk 0:00:37]}  Qe7 {[%clk 0:00:42]} 30. Nc4 {[%clk 0:00:37]}  Bg7 {[%clk 0:00:39]} 31. Rf1 {[%clk 0:00:35]}  Qxe4 {[%clk 0:00:34]} 32. Qxf7 {[%clk 0:00:34]}  Qd4 {[%clk 0:00:31]} 33. Ka2 {[%clk 0:00:32]}  Re2 {[%clk 0:00:25]} 34. Qxg6 {[%clk 0:00:29]}  Qc3 {[%clk 0:00:20]} 35. Rc1 {[%clk 0:00:25]}  a6 {[%clk 0:00:20]} 36. a5 {[%clk 0:00:23]}  Rhe8 {[%clk 0:00:19]} 37. h4 {[%clk 0:00:19]}  Re1 {[%clk 0:00:19]} 38. Rxe1 {[%clk 0:00:18]}  Rxe1 {[%clk 0:00:17]} 39. Qf5+ {[%clk 0:00:12]}  Kb8 {[%clk 0:00:17]} 0-1


[Site "https://www.chess.com"]

[Event "Titled Tuesday Blitz August 15 Early 2023"]
[White "Topalov, Aleksandar"]
[Black "agvania123"]
[WhiteFideId "925659"]
[WhiteElo "2359"]
[BlackElo "2263"]
[Result "1-0"]
[Round "10"]
[TimeControl "180+1"]
[Date "2023.08.15"]
[WhiteClock "0:00:17"]
[BlackClock "0:00:18"]
[Board "125"]

1. b3 {[%clk 0:02:55]}  c5 {[%clk 0:02:58]} 2. Bb2 {[%clk 0:02:49]}  Nc6 {[%clk 0:02:58]} 3. c4 {[%clk 0:02:47]}  e5 {[%clk 0:02:58]} 4. e3 {[%clk 0:02:47]}  d6 {[%clk 0:02:58]} 5. d3 {[%clk 0:02:47]}  g6 {[%clk 0:02:59]} 6. Nf3 {[%clk 0:02:45]}  Bg7 {[%clk 0:02:59]} 7. g3 {[%clk 0:02:44]}  Nge7 {[%clk 0:02:59]} 8. Nbd2 {[%clk 0:02:43]}  O-O {[%clk 0:03:00]} 9. a3 {[%clk 0:02:40]}  a6 {[%clk 0:02:59]} 10. Qc2 {[%clk 0:02:39]}  Rb8 {[%clk 0:02:59]} 11. Bg2 {[%clk 0:02:38]}  Be6 {[%clk 0:02:58]} 12. O-O {[%clk 0:02:37]}  h6 {[%clk 0:02:58]} 13. Rfe1 {[%clk 0:02:29]}  f5 {[%clk 0:02:58]} 14. Bc3 {[%clk 0:02:23]}  d5 {[%clk 0:02:54]} 15. cxd5 {[%clk 0:02:20]}  Nxd5 {[%clk 0:02:53]} 16. Bb2 {[%clk 0:02:20]}  b6 {[%clk 0:02:49]} 17. b4 {[%clk 0:02:17]}  Rc8 {[%clk 0:02:36]} 18. bxc5 {[%clk 0:02:17]}  Na5 {[%clk 0:02:10]} 19. d4 {[%clk 0:02:03]}  e4 {[%clk 0:02:09]} 20. Ne5 {[%clk 0:01:39]}  Bxe5 {[%clk 0:02:07]} 21. dxe5 {[%clk 0:01:39]}  Rxc5 {[%clk 0:02:08]} 22. Qd1 {[%clk 0:01:27]}  Qc7 {[%clk 0:02:04]} 23. Bd4 {[%clk 0:01:27]}  Rc6 {[%clk 0:01:56]} 24. g4 {[%clk 0:01:26]}  Rd8 {[%clk 0:01:55]} 25. gxf5 {[%clk 0:01:25]}  gxf5 {[%clk 0:01:56]} 26. Qh5 {[%clk 0:01:23]}  Kh7 {[%clk 0:01:56]} 27. Kh1 {[%clk 0:01:18]}  Rg8 {[%clk 0:01:56]} 28. Rg1 {[%clk 0:00:54]}  Rc2 {[%clk 0:01:55]} 29. Bh3 {[%clk 0:00:46]}  Qc8 {[%clk 0:00:54]} 30. Rxg8 {[%clk 0:00:42]}  Qxg8 {[%clk 0:00:54]} 31. Bxf5+ {[%clk 0:00:39]}  Bxf5 {[%clk 0:00:54]} 32. Qxf5+ {[%clk 0:00:40]}  Qg6 {[%clk 0:00:54]} 33. Qd7+ {[%clk 0:00:31]}  Qg7 {[%clk 0:00:51]} 34. Qxd5 {[%clk 0:00:29]}  Rxd2 {[%clk 0:00:50]} 35. Rg1 {[%clk 0:00:27]}  Qb7 {[%clk 0:00:28]} 36. Qe6 {[%clk 0:00:17]}  Rxf2 {[%clk 0:00:18]} 37. Qg6+ {[%clk 0:00:16]}  Kh8 {[%clk 0:00:18]} 38. Qg8# {[%clk 0:00:17]} 1-0


[Site "https://www.chess.com"]

[Event "Titled Tuesday Blitz August 15 Early 2023"]
[White "Fernandez Hernandez, Gerardo"]
[Black "arturdailima"]
[WhiteFideId "2207400"]
[WhiteElo "2244"]
[BlackElo "2349"]
[Result "1-0"]
[Round "10"]
[TimeControl "180+1"]
[Date "2023.08.15"]
[WhiteClock "0:01:55"]
[BlackClock "0:01:49"]
[Board "126"]

1. e4 {[%clk 0:03:00]}  c5 {[%clk 0:02:51]} 2. Nc3 {[%clk 0:03:00]}  b6 {[%clk 0:02:51]} 3. g3 {[%clk 0:02:50]}  Bb7 {[%clk 0:02:51]} 4. Bg2 {[%clk 0:02:51]}  Nc6 {[%clk 0:02:51]} 5. d3 {[%clk 0:02:50]}  e6 {[%clk 0:02:51]} 6. f4 {[%clk 0:02:50]}  Nge7 {[%clk 0:02:43]} 7. Nf3 {[%clk 0:02:49]}  d6 {[%clk 0:02:43]} 8. O-O {[%clk 0:02:49]}  Qd7 {[%clk 0:02:42]} 9. a3 {[%clk 0:02:17]}  a6 {[%clk 0:02:41]} 10. Nh4 {[%clk 0:02:14]}  b5 {[%clk 0:02:41]} 11. f5 {[%clk 0:02:13]}  e5 {[%clk 0:02:36]} 12. f6 {[%clk 0:02:04]}  Ng6 {[%clk 0:02:34]} 13. Nf5 {[%clk 0:01:58]}  gxf6 {[%clk 0:02:33]} 14. Nd5 {[%clk 0:01:57]}  Qe6 {[%clk 0:01:49]} 15. Nc7+ {[%clk 0:01:55]} 1-0


[Site "https://www.chess.com"]

[Event "Titled Tuesday Blitz August 15 Early 2023"]
[White "Afanasieva, Alexandra"]
[Black "le-castor-faineant"]
[WhiteFideId "34126926"]
[WhiteElo "2326"]
[BlackElo "2198"]
[Result "0-1"]
[Round "10"]
[TimeControl "180+1"]
[Date "2023.08.15"]
[WhiteClock "0:02:24"]
[BlackClock "0:01:29"]
[Board "128"]

1. e4 {[%clk 0:03:00]}  e5 {[%clk 0:02:57]} 2. Nf3 {[%clk 0:02:59]}  Nf6 {[%clk 0:02:57]} 3. Nxe5 {[%clk 0:02:59]}  d6 {[%clk 0:02:57]} 4. Nf3 {[%clk 0:03:00]}  Nxe4 {[%clk 0:02:57]} 5. Nc3 {[%clk 0:03:01]}  Nxc3 {[%clk 0:02:56]} 6. dxc3 {[%clk 0:03:02]}  Be7 {[%clk 0:02:55]} 7. Bf4 {[%clk 0:03:01]}  O-O {[%clk 0:02:54]} 8. Qd2 {[%clk 0:03:01]}  Be6 {[%clk 0:02:52]} 9. h3 {[%clk 0:02:55]}  a5 {[%clk 0:02:51]} 10. a3 {[%clk 0:02:55]}  Na6 {[%clk 0:02:47]} 11. O-O-O {[%clk 0:02:54]}  Nc5 {[%clk 0:02:48]} 12. g4 {[%clk 0:02:54]}  b5 {[%clk 0:02:47]} 13. Bg2 {[%clk 0:02:54]}  b4 {[%clk 0:02:44]} 14. cxb4 {[%clk 0:02:51]}  axb4 {[%clk 0:02:44]} 15. Qxb4 {[%clk 0:02:48]}  Rb8 {[%clk 0:02:44]} 16. Qd2 {[%clk 0:02:42]}  Bf6 {[%clk 0:02:41]} 17. Nd4 {[%clk 0:02:43]}  Qd7 {[%clk 0:01:56]} 18. Bc6 {[%clk 0:02:28]}  Bxd4 {[%clk 0:01:55]} 19. Bxd7 {[%clk 0:02:24]}  Bxb2+ {[%clk 0:01:55]} 20. Kb1 {[%clk 0:02:25]}  Bxa3+ {[%clk 0:01:40]} 21. Ka1 {[%clk 0:02:24]}  Bb2+ {[%clk 0:01:39]} 22. Kb1 {[%clk 0:02:24]}  Bc3+ {[%clk 0:01:29]} 0-1


[Site "https://www.chess.com"]

[Event "Titled Tuesday Blitz August 15 Early 2023"]
[White "Smietanska, Wiktoria"]
[Black "Nugumanov, Bakhtiyar"]
[WhiteFideId "21869359"]
[BlackFideId "13701797"]
[WhiteElo "2290"]
[BlackElo "2113"]
[Result "1-0"]
[Round "10"]
[TimeControl "180+1"]
[Date "2023.08.15"]
[WhiteClock "0:00:05"]
[BlackClock "0:00:00"]
[Board "130"]

1. c4 {[%clk 0:02:56]}  Nf6 {[%clk 0:02:57]} 2. Nc3 {[%clk 0:02:54]}  g6 {[%clk 0:02:57]} 3. g3 {[%clk 0:02:54]}  Bg7 {[%clk 0:02:58]} 4. Bg2 {[%clk 0:02:55]}  O-O {[%clk 0:02:57]} 5. e4 {[%clk 0:02:55]}  d6 {[%clk 0:02:57]} 6. Nge2 {[%clk 0:02:56]}  e5 {[%clk 0:02:55]} 7. O-O {[%clk 0:02:56]}  Nc6 {[%clk 0:02:55]} 8. d3 {[%clk 0:02:57]}  Nh5 {[%clk 0:02:54]} 9. f4 {[%clk 0:02:54]}  f5 {[%clk 0:02:54]} 10. Nd5 {[%clk 0:02:52]}  Be6 {[%clk 0:02:34]} 11. fxe5 {[%clk 0:02:46]}  dxe5 {[%clk 0:02:32]} 12. Nec3 {[%clk 0:02:44]}  Nf6 {[%clk 0:02:16]} 13. Bg5 {[%clk 0:02:39]}  Nd4 {[%clk 0:02:12]} 14. Qd2 {[%clk 0:02:31]}  c6 {[%clk 0:02:11]} 15. Nxf6+ {[%clk 0:02:14]}  Bxf6 {[%clk 0:02:10]} 16. Bh6 {[%clk 0:02:07]}  Rf7 {[%clk 0:02:09]} 17. exf5 {[%clk 0:02:07]}  gxf5 {[%clk 0:02:07]} 18. Rae1 {[%clk 0:01:57]}  Qd7 {[%clk 0:01:41]} 19. Bg5 {[%clk 0:01:54]}  Bg7 {[%clk 0:01:39]} 20. Ne2 {[%clk 0:01:44]}  Nxe2+ {[%clk 0:01:18]} 21. Qxe2 {[%clk 0:01:41]}  Re8 {[%clk 0:01:12]} 22. Bf3 {[%clk 0:01:38]}  h6 {[%clk 0:01:10]} 23. Be3 {[%clk 0:01:36]}  Rff8 {[%clk 0:01:01]} 24. Bh5 {[%clk 0:01:35]}  Bf7 {[%clk 0:01:00]} 25. Bf3 {[%clk 0:01:28]}  b6 {[%clk 0:00:58]} 26. Qg2 {[%clk 0:01:26]}  Re6 {[%clk 0:00:54]} 27. Bd2 {[%clk 0:01:14]}  Bg6 {[%clk 0:00:46]} 28. h4 {[%clk 0:01:12]}  Bh7 {[%clk 0:00:41]} 29. Bb4 {[%clk 0:00:47]}  Rd8 {[%clk 0:00:36]} 30. a4 {[%clk 0:00:38]}  a5 {[%clk 0:00:34]} 31. Bc3 {[%clk 0:00:37]}  Qc7 {[%clk 0:00:18]} 32. Qc2 {[%clk 0:00:24]}  e4 {[%clk 0:00:16]} 33. dxe4 {[%clk 0:00:21]}  Qxg3+ {[%clk 0:00:17]} 34. Bg2 {[%clk 0:00:18]}  fxe4 {[%clk 0:00:13]} 35. Bxg7 {[%clk 0:00:17]}  Qxg7 {[%clk 0:00:11]} 36. Re3 {[%clk 0:00:13]}  Kh8 {[%clk 0:00:10]} 37. Qf2 {[%clk 0:00:11]}  Rg8 {[%clk 0:00:09]} 38. Kh1 {[%clk 0:00:11]}  Qe5 {[%clk 0:00:04]} 39. Qd2 {[%clk 0:00:06]}  Reg6 {[%clk 0:00:04]} 40. Rxe4 {[%clk 0:00:04]}  Qg3 {[%clk 0:00:04]} 41. Re2 {[%clk 0:00:04]}  Qxh4+ {[%clk 0:00:04]} 42. Kg1 {[%clk 0:00:04]}  Qd8 {[%clk 0:00:01]} 43. Qc3+ {[%clk 0:00:05]}  R8g7 {[%clk 0:00:00]} 44. Ref2 {[%clk 0:00:05]} 1-0


[Site "https://www.chess.com"]

[Event "Titled Tuesday Blitz August 15 Early 2023"]
[White "Rodriguez Santiago, Jaime"]
[Black "Petre, Nad-Titus"]
[WhiteFideId "3100898"]
[BlackFideId "1204165"]
[WhiteElo "2275"]
[BlackElo "2578"]
[Result "0-1"]
[Round "10"]
[TimeControl "180+1"]
[Date "2023.08.15"]
[WhiteClock "0:00:27"]
[BlackClock "0:00:51"]
[Board "131"]

1. d4 {[%clk 0:03:00]}  Nf6 {[%clk 0:02:58]} 2. c4 {[%clk 0:03:00]}  d6 {[%clk 0:02:58]} 3. Nc3 {[%clk 0:02:58]}  e5 {[%clk 0:02:58]} 4. d5 {[%clk 0:02:55]}  Bf5 {[%clk 0:02:54]} 5. Bg5 {[%clk 0:02:49]}  Be7 {[%clk 0:02:46]} 6. e3 {[%clk 0:02:36]}  O-O {[%clk 0:02:11]} 7. f3 {[%clk 0:02:05]}  Nxd5 {[%clk 0:02:05]} 8. Qxd5 {[%clk 0:01:54]}  Bxg5 {[%clk 0:02:04]} 9. Qxb7 {[%clk 0:01:51]}  Nd7 {[%clk 0:02:04]} 10. Nd5 {[%clk 0:01:31]}  Rb8 {[%clk 0:01:57]} 11. Qxc7 {[%clk 0:01:15]}  Rxb2 {[%clk 0:01:50]} 12. Qxd8 {[%clk 0:01:08]}  Bxd8 {[%clk 0:01:47]} 13. e4 {[%clk 0:01:06]}  Ba5+ {[%clk 0:01:47]} 14. Kd1 {[%clk 0:01:01]}  Be6 {[%clk 0:01:46]} 15. Ne2 {[%clk 0:00:57]}  Bxd5 {[%clk 0:01:39]} 16. exd5 {[%clk 0:00:55]}  Nc5 {[%clk 0:01:33]} 17. Ng3 {[%clk 0:00:47]}  f5 {[%clk 0:01:30]} 18. Kc1 {[%clk 0:00:39]}  Rf2 {[%clk 0:00:54]} 19. Be2 {[%clk 0:00:27]}  f4 {[%clk 0:00:51]} 0-1


[Site "https://www.chess.com"]

[Event "Titled Tuesday Blitz August 15 Early 2023"]
[White "Fajdetic, Hrvoje"]
[Black "Seletsky, Grigory"]
[WhiteFideId "14501945"]
[BlackFideId "14112191"]
[WhiteElo "2255"]
[BlackElo "2481"]
[Result "0-1"]
[Round "10"]
[TimeControl "180+1"]
[Date "2023.08.15"]
[WhiteClock "0:00:00"]
[BlackClock "0:01:35"]
[Board "133"]

1. f4 {[%clk 0:02:58]}  d5 {[%clk 0:02:58]} 2. b3 {[%clk 0:02:57]}  g6 {[%clk 0:02:57]} 3. Bb2 {[%clk 0:02:58]}  Nf6 {[%clk 0:02:58]} 4. Nf3 {[%clk 0:02:58]}  Bg7 {[%clk 0:02:59]} 5. e3 {[%clk 0:02:58]}  O-O {[%clk 0:02:59]} 6. Be2 {[%clk 0:02:58]}  c5 {[%clk 0:03:00]} 7. O-O {[%clk 0:02:58]}  Nc6 {[%clk 0:03:00]} 8. d3 {[%clk 0:02:55]}  Ng4 {[%clk 0:02:55]} 9. Bxg7 {[%clk 0:02:54]}  Kxg7 {[%clk 0:02:55]} 10. Qd2 {[%clk 0:02:53]}  d4 {[%clk 0:02:55]} 11. e4 {[%clk 0:02:44]}  Ne3 {[%clk 0:02:54]} 12. Re1 {[%clk 0:02:42]}  Bg4 {[%clk 0:02:53]} 13. c3 {[%clk 0:02:27]}  Bxf3 {[%clk 0:02:49]} 14. Bxf3 {[%clk 0:02:26]}  e5 {[%clk 0:02:50]} 15. fxe5 {[%clk 0:02:20]}  Nxe5 {[%clk 0:02:49]} 16. Na3 {[%clk 0:02:12]}  Qd6 {[%clk 0:02:41]} 17. Rac1 {[%clk 0:00:57]}  b6 {[%clk 0:02:22]} 18. cxd4 {[%clk 0:00:40]}  cxd4 {[%clk 0:02:21]} 19. Nb5 {[%clk 0:00:35]}  Qd7 {[%clk 0:02:20]} 20. a4 {[%clk 0:00:30]}  Rac8 {[%clk 0:02:16]} 21. Be2 {[%clk 0:00:15]}  a6 {[%clk 0:02:10]} 22. Na3 {[%clk 0:00:15]}  Rxc1 {[%clk 0:01:58]} 23. Rxc1 {[%clk 0:00:15]}  Rc8 {[%clk 0:01:58]} 24. Rxc8 {[%clk 0:00:10]}  Qxc8 {[%clk 0:01:57]} 25. h3 {[%clk 0:00:10]}  Qc3 {[%clk 0:01:51]} 26. Qxc3 {[%clk 0:00:07]}  dxc3 {[%clk 0:01:51]} 27. d4 {[%clk 0:00:08]}  Nc6 {[%clk 0:01:51]} 28. d5 {[%clk 0:00:05]}  Nd4 {[%clk 0:01:50]} 29. Bxa6 {[%clk 0:00:03]}  c2 {[%clk 0:01:45]} 30. Nxc2 {[%clk 0:00:03]}  Nexc2 {[%clk 0:01:46]} 31. d6 {[%clk 0:00:04]}  Kf8 {[%clk 0:01:37]} 32. Kf2 {[%clk 0:00:00]}  Nxb3 {[%clk 0:01:35]} 0-1


[Site "https://www.chess.com"]